[Event "Titled Tuesday Blitz July 25 Late 2023"]
[White "AndresDelgado77"]
[Black "Gatterer, Florian"]
[BlackFideId "811688"]
[WhiteElo "2328"]
[BlackElo "2431"]
[Result "1-0"]
[Round "7"]
[TimeControl "180+2"]
[Date "2023.07.25"]
[WhiteClock "0:00:26"]
[BlackClock "0:00:00"]
[Board "110"]

1. e4 {[%clk 0:02:50]}  c5 {[%clk 0:02:59]} 2. Nf3 {[%clk 0:02:48]}  e6 {[%clk 0:03:00]} 3. c3 {[%clk 0:02:48]}  d5 {[%clk 0:02:59]} 4. e5 {[%clk 0:02:44]}  d4 {[%clk 0:02:59]} 5. cxd4 {[%clk 0:02:41]}  cxd4 {[%clk 0:02:59]} 6. Bb5+ {[%clk 0:02:29]}  Bd7 {[%clk 0:02:58]} 7. Nxd4 {[%clk 0:02:29]}  Bc5 {[%clk 0:02:43]} 8. Bxd7+ {[%clk 0:02:20]}  Nxd7 {[%clk 0:02:43]} 9. Nf3 {[%clk 0:02:03]}  Ne7 {[%clk 0:02:43]} 10. d4 {[%clk 0:01:59]}  Bb6 {[%clk 0:02:41]} 11. Nc3 {[%clk 0:01:58]}  O-O {[%clk 0:02:32]} 12. O-O {[%clk 0:01:53]}  Rc8 {[%clk 0:02:32]} 13. Be3 {[%clk 0:01:42]}  Nb8 {[%clk 0:02:28]} 14. Qd2 {[%clk 0:01:37]}  Nd5 {[%clk 0:02:23]} 15. Ne4 {[%clk 0:01:30]}  Ba5 {[%clk 0:02:19]} 16. Qe2 {[%clk 0:01:26]}  Bb4 {[%clk 0:01:56]} 17. Bg5 {[%clk 0:01:10]}  Qa5 {[%clk 0:01:53]} 18. a3 {[%clk 0:01:03]}  Be7 {[%clk 0:01:52]} 19. Bxe7 {[%clk 0:01:00]}  Nxe7 {[%clk 0:01:52]} 20. Nd6 {[%clk 0:01:00]}  Rc7 {[%clk 0:01:46]} 21. b4 {[%clk 0:00:51]}  Qd5 {[%clk 0:01:42]} 22. Rac1 {[%clk 0:00:51]}  Rxc1 {[%clk 0:01:34]} 23. Rxc1 {[%clk 0:00:51]}  Nbc6 {[%clk 0:01:35]} 24. Qe3 {[%clk 0:00:43]}  b6 {[%clk 0:01:28]} 25. b5 {[%clk 0:00:41]}  Na5 {[%clk 0:01:22]} 26. Rc7 {[%clk 0:00:41]}  Nf5 {[%clk 0:01:16]} 27. Nxf5 {[%clk 0:00:40]}  exf5 {[%clk 0:01:17]} 28. a4 {[%clk 0:00:39]}  Qa2 {[%clk 0:00:59]} 29. h4 {[%clk 0:00:32]}  Qxa4 {[%clk 0:00:57]} 30. e6 {[%clk 0:00:32]}  Qxb5 {[%clk 0:00:32]} 31. exf7+ {[%clk 0:00:32]}  Kh8 {[%clk 0:00:32]} 32. Qe7 {[%clk 0:00:29]}  Qb1+ {[%clk 0:00:08]} 33. Kh2 {[%clk 0:00:28]}  Qb4 {[%clk 0:00:09]} 34. Qxb4 {[%clk 0:00:27]}  Rxf7 {[%clk 0:00:00]} 35. Rc8+ {[%clk 0:00:26]} 1-0


[Site "https://www.chess.com"]

[Event "Titled Tuesday Blitz July 25 Late 2023"]
[White "Fajdetic, Hrvoje"]
[Black "Estrada Nieto, Julian"]
[WhiteFideId "14501945"]
[BlackFideId "5101018"]
[WhiteElo "2326"]
[BlackElo "2471"]
[Result "1/2-1/2"]
[Round "7"]
[TimeControl "180+2"]
[Date "2023.07.25"]
[WhiteClock "0:00:17"]
[BlackClock "0:00:33"]
[Board "113"]

1. f4 {[%clk 0:02:58]}  d5 {[%clk 0:02:59]} 2. Nf3 {[%clk 0:02:57]}  g6 {[%clk 0:02:59]} 3. e3 {[%clk 0:02:55]}  Bg7 {[%clk 0:03:00]} 4. d4 {[%clk 0:02:53]}  Nf6 {[%clk 0:03:00]} 5. Bd3 {[%clk 0:02:52]}  Bf5 {[%clk 0:02:59]} 6. O-O {[%clk 0:02:50]}  O-O {[%clk 0:02:59]} 7. b3 {[%clk 0:02:46]}  Ne4 {[%clk 0:02:58]} 8. Bb2 {[%clk 0:02:45]}  Nd7 {[%clk 0:02:58]} 9. c4 {[%clk 0:02:45]}  c6 {[%clk 0:02:58]} 10. Nc3 {[%clk 0:02:43]}  Nxc3 {[%clk 0:02:58]} 11. Bxc3 {[%clk 0:02:44]}  Bxd3 {[%clk 0:02:58]} 12. Qxd3 {[%clk 0:02:44]}  Nf6 {[%clk 0:02:58]} 13. Be1 {[%clk 0:02:39]}  Ne4 {[%clk 0:02:58]} 14. Nd2 {[%clk 0:02:39]}  f5 {[%clk 0:02:54]} 15. Bh4 {[%clk 0:02:30]}  Bf6 {[%clk 0:02:50]} 16. Bxf6 {[%clk 0:02:27]}  exf6 {[%clk 0:02:50]} 17. cxd5 {[%clk 0:02:17]}  Nxd2 {[%clk 0:02:48]} 18. Qxd2 {[%clk 0:02:16]}  Qxd5 {[%clk 0:02:49]} 19. Rac1 {[%clk 0:02:15]}  Rfe8 {[%clk 0:02:49]} 20. Rc3 {[%clk 0:02:07]}  Rad8 {[%clk 0:02:47]} 21. a4 {[%clk 0:02:03]}  c5 {[%clk 0:02:41]} 22. Rd1 {[%clk 0:01:56]}  cxd4 {[%clk 0:02:35]} 23. Qxd4 {[%clk 0:01:55]}  Qxd4 {[%clk 0:02:34]} 24. Rxd4 {[%clk 0:01:56]}  Rxd4 {[%clk 0:02:32]} 25. exd4 {[%clk 0:01:56]}  Rd8 {[%clk 0:02:31]} 26. Rc4 {[%clk 0:01:51]}  Rd7 {[%clk 0:02:30]} 27. Kf2 {[%clk 0:01:52]}  Kf7 {[%clk 0:02:31]} 28. Ke3 {[%clk 0:01:52]}  Ke6 {[%clk 0:02:31]} 29. Rc5 {[%clk 0:01:49]}  b6 {[%clk 0:02:26]} 30. Rc6+ {[%clk 0:01:45]}  Ke7 {[%clk 0:02:14]} 31. a5 {[%clk 0:01:40]}  bxa5 {[%clk 0:02:12]} 32. Ra6 {[%clk 0:01:41]}  Rb7 {[%clk 0:02:12]} 33. Kf2 {[%clk 0:01:19]}  g5 {[%clk 0:02:04]} 34. Rxa5 {[%clk 0:01:10]}  Ke6 {[%clk 0:01:58]} 35. d5+ {[%clk 0:00:59]}  Kd6 {[%clk 0:01:53]} 36. Ra6+ {[%clk 0:00:57]}  Kxd5 {[%clk 0:01:53]} 37. Rxf6 {[%clk 0:00:57]}  gxf4 {[%clk 0:01:46]} 38. Rxf5+ {[%clk 0:00:55]}  Ke4 {[%clk 0:01:47]} 39. Ra5 {[%clk 0:00:51]}  Rxb3 {[%clk 0:01:45]} 40. Rxa7 {[%clk 0:00:50]}  Rb2+ {[%clk 0:01:46]} 41. Kf1 {[%clk 0:00:51]}  h5 {[%clk 0:01:37]} 42. Re7+ {[%clk 0:00:45]}  Kf5 {[%clk 0:01:37]} 43. Rf7+ {[%clk 0:00:44]}  Kg5 {[%clk 0:01:36]} 44. Rg7+ {[%clk 0:00:43]}  Kh4 {[%clk 0:01:35]} 45. Rf7 {[%clk 0:00:39]}  Kg4 {[%clk 0:01:34]} 46. Rg7+ {[%clk 0:00:38]}  Kf5 {[%clk 0:01:33]} 47. Rf7+ {[%clk 0:00:38]}  Kg5 {[%clk 0:01:33]} 48. Rg7+ {[%clk 0:00:38]}  Kf6 {[%clk 0:01:33]} 49. Rh7 {[%clk 0:00:37]}  Kg6 {[%clk 0:01:32]} 50. Rh8 {[%clk 0:00:36]}  f3 {[%clk 0:01:26]} 51. gxf3 {[%clk 0:00:32]}  Rxh2 {[%clk 0:01:26]} 52. Rg8+ {[%clk 0:00:28]}  Kf5 {[%clk 0:01:23]} 53. Rg2 {[%clk 0:00:29]}  Rh1+ {[%clk 0:01:18]} 54. Kf2 {[%clk 0:00:29]}  h4 {[%clk 0:01:16]} 55. Rg4 {[%clk 0:00:24]}  Rh2+ {[%clk 0:01:07]} 56. Kg1 {[%clk 0:00:23]}  Rb2 {[%clk 0:00:49]} 57. Rxh4 {[%clk 0:00:22]}  Kg5 {[%clk 0:00:49]} 58. Rg4+ {[%clk 0:00:21]}  Kf5 {[%clk 0:00:49]} 59. Rg2 {[%clk 0:00:21]}  Rb3 {[%clk 0:00:46]} 60. Kf2 {[%clk 0:00:20]}  Rb2+ {[%clk 0:00:46]} 61. Kg3 {[%clk 0:00:20]}  Rb4 {[%clk 0:00:42]} 62. Rc2 {[%clk 0:00:19]}  Rb5 {[%clk 0:00:40]} 63. Rc4 {[%clk 0:00:19]}  Kg5 {[%clk 0:00:39]} 64. Rg4+ {[%clk 0:00:19]}  Kf5 {[%clk 0:00:38]} 65. Rh4 {[%clk 0:00:19]}  Kg5 {[%clk 0:00:37]} 66. Rg4+ {[%clk 0:00:19]}  Kf5 {[%clk 0:00:37]} 67. Rc4 {[%clk 0:00:19]}  Kg5 {[%clk 0:00:36]} 68. Rc3 {[%clk 0:00:19]}  Kf5 {[%clk 0:00:35]} 69. Ra3 {[%clk 0:00:19]}  Kg5 {[%clk 0:00:34]} 70. Ra8 {[%clk 0:00:19]}  Kf5 {[%clk 0:00:34]} 71. Rg8 {[%clk 0:00:19]}  Kf6 {[%clk 0:00:33]} 72. Rg4 {[%clk 0:00:17]}  Kf5 {[%clk 0:00:33]} 1/2-1/2


[Site "https://www.chess.com"]

[Event "Titled Tuesday Blitz July 25 Late 2023"]
[White "ZugZwang1201"]
[Black "jero888"]
[WhiteElo "2467"]
[BlackElo "2326"]
[Result "0-1"]
[Round "7"]
[TimeControl "180+2"]
[Date "2023.07.25"]
[WhiteClock "0:00:00"]
[BlackClock "0:00:10"]
[Board "114"]

1. e4 {[%clk 0:03:00]}  c5 {[%clk 0:02:57]} 2. Nf3 {[%clk 0:03:01]}  d6 {[%clk 0:02:56]} 3. d4 {[%clk 0:03:01]}  cxd4 {[%clk 0:02:57]} 4. Nxd4 {[%clk 0:03:02]}  Nf6 {[%clk 0:02:58]} 5. Nc3 {[%clk 0:03:03]}  Nc6 {[%clk 0:02:57]} 6. f4 {[%clk 0:03:00]}  Qb6 {[%clk 0:02:53]} 7. Nb3 {[%clk 0:02:58]}  g6 {[%clk 0:02:52]} 8. Be2 {[%clk 0:02:55]}  Bg7 {[%clk 0:02:51]} 9. g4 {[%clk 0:02:55]}  O-O {[%clk 0:02:36]} 10. g5 {[%clk 0:02:55]}  Nd7 {[%clk 0:02:37]} 11. Nd5 {[%clk 0:02:51]}  Qd8 {[%clk 0:02:36]} 12. c4 {[%clk 0:02:43]}  e6 {[%clk 0:02:10]} 13. Nc3 {[%clk 0:02:42]}  Nc5 {[%clk 0:02:09]} 14. Be3 {[%clk 0:02:30]}  b6 {[%clk 0:02:03]} 15. Nd4 {[%clk 0:02:17]}  Bb7 {[%clk 0:01:56]} 16. Ndb5 {[%clk 0:02:15]}  d5 {[%clk 0:01:23]} 17. cxd5 {[%clk 0:02:10]}  exd5 {[%clk 0:01:24]} 18. exd5 {[%clk 0:02:01]}  Nb4 {[%clk 0:01:13]} 19. O-O {[%clk 0:01:17]}  Nxd5 {[%clk 0:00:57]} 20. Bxc5 {[%clk 0:01:11]}  Nxc3 {[%clk 0:00:34]} 21. Nxc3 {[%clk 0:01:07]}  bxc5 {[%clk 0:00:32]} 22. Qxd8 {[%clk 0:01:00]}  Raxd8 {[%clk 0:00:27]} 23. Bf3 {[%clk 0:00:57]}  Bd4+ {[%clk 0:00:24]} 24. Kg2 {[%clk 0:00:57]}  Bxf3+ {[%clk 0:00:23]} 25. Kxf3 {[%clk 0:00:56]}  Rb8 {[%clk 0:00:24]} 26. Na4 {[%clk 0:00:54]}  Bxb2 {[%clk 0:00:22]} 27. Nxb2 {[%clk 0:00:19]}  Rxb2 {[%clk 0:00:18]} 28. Rfc1 {[%clk 0:00:19]}  Rc8 {[%clk 0:00:16]} 29. Rc4 {[%clk 0:00:18]}  Rxh2 {[%clk 0:00:15]} 30. a4 {[%clk 0:00:17]}  Rh3+ {[%clk 0:00:13]} 31. Kg4 {[%clk 0:00:14]}  Rb3 {[%clk 0:00:13]} 32. Rac1 {[%clk 0:00:14]}  Ra3 {[%clk 0:00:13]} 33. f5 {[%clk 0:00:13]}  gxf5+ {[%clk 0:00:13]} 34. Kxf5 {[%clk 0:00:14]}  Kg7 {[%clk 0:00:13]} 35. R1c2 {[%clk 0:00:11]}  Rd8 {[%clk 0:00:11]} 36. Rxc5 {[%clk 0:00:10]}  Rxa4 {[%clk 0:00:11]} 37. Rb2 {[%clk 0:00:10]}  Rdd4 {[%clk 0:00:11]} 38. Rb7 {[%clk 0:00:09]}  Rf4+ {[%clk 0:00:11]} 39. Ke5 {[%clk 0:00:09]}  Rae4+ {[%clk 0:00:11]} 40. Kd6 {[%clk 0:00:10]}  Rd4+ {[%clk 0:00:10]} 41. Kc6 {[%clk 0:00:09]}  Rc4 {[%clk 0:00:10]} 42. Rxa7 {[%clk 0:00:09]}  Rxc5+ {[%clk 0:00:10]} 43. Kxc5 {[%clk 0:00:10]}  Rf5+ {[%clk 0:00:11]} 44. Kd4 {[%clk 0:00:10]}  Rxg5 {[%clk 0:00:12]} 45. Ke4 {[%clk 0:00:11]}  h5 {[%clk 0:00:11]} 46. Kf4 {[%clk 0:00:10]}  Rg6 {[%clk 0:00:11]} 47. Kf5 {[%clk 0:00:10]}  Rf6+ {[%clk 0:00:10]} 48. Kg5 {[%clk 0:00:10]}  Rh6 {[%clk 0:00:11]} 49. Rb7 {[%clk 0:00:06]}  h4 {[%clk 0:00:10]} 50. Rb2 {[%clk 0:00:03]}  h3 {[%clk 0:00:11]} 51. Rh2 {[%clk 0:00:03]}  Rh8 {[%clk 0:00:11]} 52. Kf5 {[%clk 0:00:03]}  f6 {[%clk 0:00:11]} 53. Kg4 {[%clk 0:00:03]}  Kg6 {[%clk 0:00:12]} 54. Kf4 {[%clk 0:00:02]}  Kf7 {[%clk 0:00:10]} 55. Kf5 {[%clk 0:00:02]}  Ke7 {[%clk 0:00:10]} 56. Kg6 {[%clk 0:00:02]}  Ke6 {[%clk 0:00:10]} 57. Kg7 {[%clk 0:00:01]}  Rh4 {[%clk 0:00:10]} 58. Kg6 {[%clk 0:00:02]}  Ke5 {[%clk 0:00:10]} 59. Kg7 {[%clk 0:00:00]}  Kf4 {[%clk 0:00:10]} 0-1


[Site "https://www.chess.com"]

[Event "Titled Tuesday Blitz July 25 Late 2023"]
[White "szachmistrz2500"]
[Black "Tsyhanchuk, Stanislav"]
[BlackFideId "13505130"]
[WhiteElo "2434"]
[BlackElo "2317"]
[Result "0-1"]
[Round "7"]
[TimeControl "180+2"]
[Date "2023.07.25"]
[WhiteClock "0:00:02"]
[BlackClock "0:00:21"]
[Board "116"]

1. Nf3 {[%clk 0:03:00]}  Nf6 {[%clk 0:02:59]} 2. g3 {[%clk 0:03:01]}  d5 {[%clk 0:02:59]} 3. Bg2 {[%clk 0:03:01]}  c5 {[%clk 0:03:00]} 4. O-O {[%clk 0:03:01]}  Nc6 {[%clk 0:03:00]} 5. d3 {[%clk 0:03:01]}  e6 {[%clk 0:03:00]} 6. Nbd2 {[%clk 0:03:02]}  Be7 {[%clk 0:03:00]} 7. e4 {[%clk 0:03:02]}  Qc7 {[%clk 0:03:00]} 8. Qe2 {[%clk 0:03:01]}  O-O {[%clk 0:02:59]} 9. e5 {[%clk 0:02:59]}  Nd7 {[%clk 0:02:59]} 10. Re1 {[%clk 0:03:00]}  b5 {[%clk 0:02:57]} 11. Nf1 {[%clk 0:02:59]}  Bb7 {[%clk 0:02:58]} 12. h4 {[%clk 0:02:59]}  Rfb8 {[%clk 0:02:57]} 13. h5 {[%clk 0:02:59]}  h6 {[%clk 0:02:56]} 14. N1h2 {[%clk 0:02:59]}  Bf8 {[%clk 0:02:51]} 15. Ng4 {[%clk 0:02:59]}  d4 {[%clk 0:02:50]} 16. Bf4 {[%clk 0:02:57]}  Ne7 {[%clk 0:02:49]} 17. Nh4 {[%clk 0:02:22]}  Bxg2 {[%clk 0:02:48]} 18. Kxg2 {[%clk 0:02:22]}  Nb6 {[%clk 0:02:46]} 19. Kh2 {[%clk 0:02:13]}  Nbd5 {[%clk 0:02:46]} 20. Bd2 {[%clk 0:02:13]}  Nf5 {[%clk 0:02:44]} 21. Ng2 {[%clk 0:02:08]}  c4 {[%clk 0:02:39]} 22. Rac1 {[%clk 0:02:06]}  c3 {[%clk 0:02:39]} 23. bxc3 {[%clk 0:02:04]}  dxc3 {[%clk 0:02:40]} 24. Bf4 {[%clk 0:02:01]}  Qd8 {[%clk 0:02:23]} 25. Qe4 {[%clk 0:01:57]}  b4 {[%clk 0:02:19]} 26. f3 {[%clk 0:01:55]}  a5 {[%clk 0:02:18]} 27. Nf2 {[%clk 0:01:55]}  a4 {[%clk 0:02:14]} 28. g4 {[%clk 0:01:50]}  Nh4 {[%clk 0:02:10]} 29. Ne3 {[%clk 0:01:47]}  Nxf4 {[%clk 0:02:08]} 30. Qxf4 {[%clk 0:01:45]}  g5 {[%clk 0:02:04]} 31. hxg6 {[%clk 0:01:38]}  Nxg6 {[%clk 0:02:04]} 32. Qg3 {[%clk 0:01:38]}  Qh4+ {[%clk 0:02:03]} 33. Qxh4 {[%clk 0:01:32]}  Nxh4 {[%clk 0:02:03]} 34. Kg3 {[%clk 0:01:33]}  Ng6 {[%clk 0:02:03]} 35. f4 {[%clk 0:01:33]}  Be7 {[%clk 0:01:59]} 36. Ne4 {[%clk 0:01:32]}  Bh4+ {[%clk 0:01:58]} 37. Kf3 {[%clk 0:01:30]}  Bxe1 {[%clk 0:01:59]} 38. Rxe1 {[%clk 0:01:30]}  b3 {[%clk 0:01:57]} 39. cxb3 {[%clk 0:01:23]}  axb3 {[%clk 0:01:58]} 40. axb3 {[%clk 0:01:24]}  Rxb3 {[%clk 0:01:59]} 41. Rc1 {[%clk 0:01:24]}  Rc8 {[%clk 0:01:56]} 42. Nc4 {[%clk 0:01:21]}  Rd8 {[%clk 0:01:50]} 43. Ke3 {[%clk 0:01:19]}  c2 {[%clk 0:01:49]} 44. Ned6 {[%clk 0:01:15]}  Rc3 {[%clk 0:01:42]} 45. Kd2 {[%clk 0:01:12]}  Rb3 {[%clk 0:01:39]} 46. Ke3 {[%clk 0:01:12]}  f6 {[%clk 0:01:35]} 47. exf6 {[%clk 0:01:07]}  Kf8 {[%clk 0:01:31]} 48. Rxc2 {[%clk 0:01:05]}  Rb1 {[%clk 0:01:21]} 49. Rh2 {[%clk 0:01:00]}  Re1+ {[%clk 0:01:20]} 50. Kd2 {[%clk 0:00:54]}  Rg1 {[%clk 0:01:13]} 51. f5 {[%clk 0:00:32]}  exf5 {[%clk 0:01:09]} 52. gxf5 {[%clk 0:00:32]}  Ne5 {[%clk 0:01:00]} 53. Nxe5 {[%clk 0:00:19]}  Rxd6 {[%clk 0:01:00]} 54. Rxh6 {[%clk 0:00:19]}  Rg8 {[%clk 0:00:46]} 55. Ke3 {[%clk 0:00:19]}  Rd5 {[%clk 0:00:40]} 56. Ke4 {[%clk 0:00:16]}  Rd6 {[%clk 0:00:39]} 57. d4 {[%clk 0:00:16]}  Rg1 {[%clk 0:00:35]} 58. f7 {[%clk 0:00:14]}  Rxh6 {[%clk 0:00:32]} 59. Kd5 {[%clk 0:00:08]}  Rf1 {[%clk 0:00:29]} 60. Ke4 {[%clk 0:00:04]}  Rh4+ {[%clk 0:00:29]} 61. Kd5 {[%clk 0:00:04]}  Rhf4 {[%clk 0:00:23]} 62. Ng6+ {[%clk 0:00:04]}  Kxf7 {[%clk 0:00:24]} 63. Nxf4 {[%clk 0:00:04]}  Rxf4 {[%clk 0:00:24]} 64. Ke5 {[%clk 0:00:04]}  Rf1 {[%clk 0:00:24]} 65. d5 {[%clk 0:00:05]}  Re1+ {[%clk 0:00:24]} 66. Kd6 {[%clk 0:00:05]}  Kf6 {[%clk 0:00:19]} 67. Kc7 {[%clk 0:00:03]}  Rc1+ {[%clk 0:00:19]} 68. Kd7 {[%clk 0:00:02]}  Rd1 {[%clk 0:00:20]} 69. d6 {[%clk 0:00:03]}  Ke5 {[%clk 0:00:20]} 70. f6 {[%clk 0:00:03]}  Rxd6+ {[%clk 0:00:20]} 71. Ke7 {[%clk 0:00:02]}  Rxf6 {[%clk 0:00:21]} 0-1


[Site "https://www.chess.com"]

[Event "Titled Tuesday Blitz July 25 Late 2023"]
[White "Miguelitro69"]
[Black "Arnold, Ken"]
[BlackFideId "2056836"]
[WhiteElo "2315"]
[BlackElo "2423"]
[Result "0-1"]
[Round "7"]
[TimeControl "180+2"]
[Date "2023.07.25"]
[WhiteClock "0:00:00"]
[BlackClock "0:00:43"]
[Board "117"]

1. e4 {[%clk 0:03:00]}  c6 {[%clk 0:02:56]} 2. d4 {[%clk 0:02:59]}  d5 {[%clk 0:02:56]} 3. Nc3 {[%clk 0:02:59]}  dxe4 {[%clk 0:02:56]} 4. Nxe4 {[%clk 0:03:00]}  Nf6 {[%clk 0:02:56]} 5. Nxf6+ {[%clk 0:03:00]}  exf6 {[%clk 0:02:56]} 6. c3 {[%clk 0:03:00]}  Bd6 {[%clk 0:02:57]} 7. Bd3 {[%clk 0:03:01]}  O-O {[%clk 0:02:57]} 8. Ne2 {[%clk 0:03:01]}  Re8 {[%clk 0:02:57]} 9. O-O {[%clk 0:03:02]}  Nd7 {[%clk 0:02:56]} 10. Ng3 {[%clk 0:03:02]}  Nf8 {[%clk 0:02:56]} 11. f4 {[%clk 0:03:02]}  Qc7 {[%clk 0:02:55]} 12. f5 {[%clk 0:02:46]}  Bxg3 {[%clk 0:02:52]} 13. hxg3 {[%clk 0:02:46]}  Qxg3 {[%clk 0:02:50]} 14. Bf4 {[%clk 0:02:45]}  Qh4 {[%clk 0:02:41]} 15. Rf3 {[%clk 0:02:41]}  g5 {[%clk 0:02:34]} 16. Bd6 {[%clk 0:01:42]}  g4 {[%clk 0:02:08]} 17. Rg3 {[%clk 0:01:28]}  h5 {[%clk 0:02:04]} 18. Bf4 {[%clk 0:01:21]}  Bd7 {[%clk 0:01:36]} 19. Qd2 {[%clk 0:01:18]}  Re7 {[%clk 0:01:23]} 20. Kf2 {[%clk 0:01:17]}  Rae8 {[%clk 0:01:21]} 21. Rg1 {[%clk 0:01:06]}  Nh7 {[%clk 0:01:16]} 22. Bd6 {[%clk 0:00:11]}  Re4 {[%clk 0:01:01]} 23. Bxe4 {[%clk 0:00:10]}  Rxe4 {[%clk 0:01:01]} 24. Rd1 {[%clk 0:00:10]}  Ng5 {[%clk 0:00:59]} 25. Re1 {[%clk 0:00:10]}  Bxf5 {[%clk 0:00:59]} 26. Bf4 {[%clk 0:00:07]}  Rxe1 {[%clk 0:00:57]} 27. Kxe1 {[%clk 0:00:06]}  Ne4 {[%clk 0:00:56]} 28. Qe3 {[%clk 0:00:06]}  Nxg3 {[%clk 0:00:51]} 29. Bxg3 {[%clk 0:00:07]}  Qh1+ {[%clk 0:00:49]} 30. Kf2 {[%clk 0:00:07]}  Qb1 {[%clk 0:00:47]} 31. Qe2 {[%clk 0:00:06]}  Qxa2 {[%clk 0:00:44]} 32. Bh4 {[%clk 0:00:07]}  Qe6 {[%clk 0:00:44]} 33. Kg3 {[%clk 0:00:00]}  Qxe2 {[%clk 0:00:43]} 0-1


[Site "https://www.chess.com"]

[Event "Titled Tuesday Blitz July 25 Late 2023"]
[White "Sala, Giulia"]
[Black "Reprintsev, Alexander"]
[WhiteFideId "2840451"]
[BlackFideId "14100541"]
[WhiteElo "2313"]
[BlackElo "2415"]
[Result "0-1"]
[Round "7"]
[TimeControl "180+2"]
[Date "2023.07.25"]
[WhiteClock "0:02:15"]
[BlackClock "0:02:17"]
[Board "118"]

1. e4 {[%clk 0:03:00]}  d5 {[%clk 0:02:59]} 2. exd5 {[%clk 0:02:59]}  Qxd5 {[%clk 0:02:59]} 3. Nc3 {[%clk 0:02:59]}  Qa5 {[%clk 0:02:58]} 4. Bc4 {[%clk 0:02:59]}  Nf6 {[%clk 0:02:58]} 5. Nf3 {[%clk 0:02:59]}  Nc6 {[%clk 0:02:56]} 6. O-O {[%clk 0:02:58]}  Bg4 {[%clk 0:02:54]} 7. d3 {[%clk 0:02:54]}  e6 {[%clk 0:02:53]} 8. Bd2 {[%clk 0:02:53]}  Qf5 {[%clk 0:02:52]} 9. Re1 {[%clk 0:02:35]}  Bxf3 {[%clk 0:02:51]} 10. Qxf3 {[%clk 0:02:33]}  Qxf3 {[%clk 0:02:50]} 11. gxf3 {[%clk 0:02:34]}  Nd4 {[%clk 0:02:50]} 12. Rf1 {[%clk 0:02:20]}  Nxf3+ {[%clk 0:02:47]} 13. Kg2 {[%clk 0:02:17]}  Nxd2 {[%clk 0:02:48]} 14. Bb3 {[%clk 0:02:16]}  Nxf1 {[%clk 0:02:47]} 15. Rxf1 {[%clk 0:02:15]}  Bb4 {[%clk 0:02:46]} 16. f4 {[%clk 0:02:16]}  Bxc3 {[%clk 0:02:45]} 17. bxc3 {[%clk 0:02:17]}  g6 {[%clk 0:02:42]} 18. f5 {[%clk 0:02:18]}  gxf5 {[%clk 0:02:42]} 19. Kf3 {[%clk 0:02:17]}  Ke7 {[%clk 0:02:40]} 20. d4 {[%clk 0:02:18]}  Rhg8 {[%clk 0:02:40]} 21. Re1 {[%clk 0:02:18]}  c6 {[%clk 0:02:38]} 22. c4 {[%clk 0:02:17]}  Rad8 {[%clk 0:02:37]} 23. c3 {[%clk 0:02:17]}  Rg6 {[%clk 0:02:34]} 24. Re5 {[%clk 0:02:17]}  Rh6 {[%clk 0:02:33]} 25. d5 {[%clk 0:02:17]}  cxd5 {[%clk 0:02:32]} 26. cxd5 {[%clk 0:02:17]}  Nxd5 {[%clk 0:02:31]} 27. c4 {[%clk 0:02:15]}  Nf6 {[%clk 0:02:25]} 28. Rb5 {[%clk 0:02:15]}  b6 {[%clk 0:02:24]} 29. c5 {[%clk 0:02:15]}  bxc5 {[%clk 0:02:18]} 30. Rxc5 {[%clk 0:02:15]}  Rd7 {[%clk 0:02:17]} 0-1


[Site "https://www.chess.com"]

[Event "Titled Tuesday Blitz July 25 Late 2023"]
[White "Barwinska, Ewa"]
[Black "Nunez V, Gustavo Eduardo"]
[WhiteFideId "21833761"]
[BlackFideId "4403690"]
[WhiteElo "2302"]
[BlackElo "2400"]
[Result "0-1"]
[Round "7"]
[TimeControl "180+2"]
[Date "2023.07.25"]
[WhiteClock "0:00:50"]
[BlackClock "0:01:54"]
[Board "120"]

1. e4 {[%clk 0:03:00]}  c5 {[%clk 0:02:58]} 2. b3 {[%clk 0:02:59]}  Nc6 {[%clk 0:02:55]} 3. Bb2 {[%clk 0:02:54]}  e5 {[%clk 0:02:55]} 4. Nc3 {[%clk 0:02:49]}  g6 {[%clk 0:02:54]} 5. Bb5 {[%clk 0:02:44]}  Nge7 {[%clk 0:02:48]} 6. Nf3 {[%clk 0:02:41]}  Bg7 {[%clk 0:02:47]} 7. O-O {[%clk 0:02:17]}  O-O {[%clk 0:02:45]} 8. Re1 {[%clk 0:02:14]}  d6 {[%clk 0:02:42]} 9. h3 {[%clk 0:02:14]}  h6 {[%clk 0:02:41]} 10. Bxc6 {[%clk 0:02:00]}  bxc6 {[%clk 0:02:40]} 11. Nd5 {[%clk 0:02:00]}  cxd5 {[%clk 0:02:39]} 12. exd5 {[%clk 0:01:59]}  Nxd5 {[%clk 0:02:39]} 13. d3 {[%clk 0:01:58]}  f5 {[%clk 0:02:38]} 14. c4 {[%clk 0:01:54]}  Nf4 {[%clk 0:02:37]} 15. Bc1 {[%clk 0:01:50]}  Ne6 {[%clk 0:02:35]} 16. Nh2 {[%clk 0:01:46]}  Bb7 {[%clk 0:02:29]} 17. Rb1 {[%clk 0:01:43]}  Qh4 {[%clk 0:02:26]} 18. a3 {[%clk 0:01:41]}  a5 {[%clk 0:02:25]} 19. b4 {[%clk 0:01:40]}  axb4 {[%clk 0:02:26]} 20. axb4 {[%clk 0:01:41]}  Rab8 {[%clk 0:02:12]} 21. b5 {[%clk 0:01:38]}  Ra8 {[%clk 0:02:09]} 22. Nf3 {[%clk 0:01:35]}  Qh5 {[%clk 0:02:06]} 23. Be3 {[%clk 0:01:27]}  Ra2 {[%clk 0:02:03]} 24. Qb3 {[%clk 0:01:23]}  Rfa8 {[%clk 0:02:00]} 25. Nd2 {[%clk 0:01:13]}  f4 {[%clk 0:01:59]} 26. g4 {[%clk 0:01:03]}  Qxh3 {[%clk 0:01:57]} 27. Ne4 {[%clk 0:00:53]}  Bxe4 {[%clk 0:01:54]} 28. dxe4 {[%clk 0:00:50]}  f3 {[%clk 0:01:54]} 0-1


[Site "https://www.chess.com"]

[Event "Titled Tuesday Blitz July 25 Late 2023"]
[White "Eggleston, Thomas A"]
[Black "rionelG"]
[WhiteFideId "412139"]
[WhiteElo "2398"]
[BlackElo "2301"]
[Result "1-0"]
[Round "7"]
[TimeControl "180+2"]
[Date "2023.07.25"]
[WhiteClock "0:01:04"]
[BlackClock "0:00:00"]
[Board "121"]

1. e4 {[%clk 0:03:00]}  c5 {[%clk 0:02:42]} 2. Nf3 {[%clk 0:03:00]}  d6 {[%clk 0:02:42]} 3. Bc4 {[%clk 0:03:01]}  Nf6 {[%clk 0:02:41]} 4. d3 {[%clk 0:03:01]}  e6 {[%clk 0:02:40]} 5. O-O {[%clk 0:02:55]}  Be7 {[%clk 0:02:38]} 6. c3 {[%clk 0:02:54]}  O-O {[%clk 0:02:34]} 7. Bb3 {[%clk 0:02:55]}  Nc6 {[%clk 0:02:31]} 8. Re1 {[%clk 0:02:49]}  Qc7 {[%clk 0:02:26]} 9. d4 {[%clk 0:02:49]}  b6 {[%clk 0:01:58]} 10. Nbd2 {[%clk 0:02:30]}  Bb7 {[%clk 0:01:48]} 11. e5 {[%clk 0:02:10]}  dxe5 {[%clk 0:01:47]} 12. dxe5 {[%clk 0:02:10]}  Nd7 {[%clk 0:01:47]} 13. Qe2 {[%clk 0:02:09]}  Rfd8 {[%clk 0:01:37]} 14. Bc2 {[%clk 0:02:05]}  Nf8 {[%clk 0:01:37]} 15. h4 {[%clk 0:02:01]}  Rd7 {[%clk 0:01:33]} 16. Nf1 {[%clk 0:01:51]}  Rad8 {[%clk 0:01:28]} 17. h5 {[%clk 0:01:46]}  h6 {[%clk 0:01:26]} 18. Bf4 {[%clk 0:01:45]}  Qc8 {[%clk 0:01:19]} 19. N1h2 {[%clk 0:01:44]}  Ba6 {[%clk 0:01:16]} 20. c4 {[%clk 0:01:32]}  Nd4 {[%clk 0:01:12]} 21. Nxd4 {[%clk 0:01:22]}  Rxd4 {[%clk 0:01:13]} 22. g3 {[%clk 0:01:19]}  Rxc4 {[%clk 0:01:03]} 23. Bd3 {[%clk 0:01:09]}  Rxd3 {[%clk 0:00:48]} 24. Qxd3 {[%clk 0:01:09]}  Rxf4 {[%clk 0:00:41]} 25. Qe3 {[%clk 0:01:09]}  Rd4 {[%clk 0:00:32]} 26. Rad1 {[%clk 0:01:07]}  Qd8 {[%clk 0:00:00]} 27. Rxd4 {[%clk 0:01:04]} 1-0


[Site "https://www.chess.com"]